[Event "Titled Tuesday Blitz October 19 2021"]
[White "Vokhidov, Shamsiddin"]
[Black "Alavkin, Arseny"]
[WhiteFideId "14204223"]
[BlackFideId "4120612"]
[WhiteElo "2616"]
[BlackElo "2391"]
[Result "1/2-1/2"]
[Round "02"]
[TimeControl "180+1"]
[Date "2021.10.19"]
[WhiteClock "0:00:12"]
[BlackClock "0:00:06"]

1. e4 {[%clk 0:03:00]}  c5 {[%clk 0:02:59]} 2. Nf3 {[%clk 0:03:00]}  Nc6 {[%clk 0:02:59]} 3. Nc3 {[%clk 0:03:00]}  g6 {[%clk 0:02:59]} 4. d4 {[%clk 0:02:59]}  cxd4 {[%clk 0:02:59]} 5. Nxd4 {[%clk 0:03:00]}  Bg7 {[%clk 0:02:59]} 6. Be3 {[%clk 0:03:00]}  Nf6 {[%clk 0:03:00]} 7. Nxc6 {[%clk 0:03:01]}  bxc6 {[%clk 0:03:01]} 8. e5 {[%clk 0:03:01]}  Ng8 {[%clk 0:03:01]} 9. Bd4 {[%clk 0:03:02]}  Qc7 {[%clk 0:02:59]} 10. e6 {[%clk 0:02:59]}  Nf6 {[%clk 0:02:56]} 11. exd7+ {[%clk 0:02:53]}  Bxd7 {[%clk 0:02:53]} 12. Bc4 {[%clk 0:02:53]}  O-O {[%clk 0:02:51]} 13. Qe2 {[%clk 0:02:50]}  Bf5 {[%clk 0:02:41]} 14. O-O-O {[%clk 0:02:46]}  Rfd8 {[%clk 0:02:41]} 15. Kb1 {[%clk 0:02:45]}  Rac8 {[%clk 0:02:29]} 16. f3 {[%clk 0:02:43]}  Rxd4 {[%clk 0:02:21]} 17. Rxd4 {[%clk 0:02:41]}  Nd5 {[%clk 0:02:21]} 18. Rhd1 {[%clk 0:02:13]}  Bxd4 {[%clk 0:02:18]} 19. Rxd4 {[%clk 0:02:14]}  Nxc3+ {[%clk 0:02:11]} 20. bxc3 {[%clk 0:02:15]}  c5 {[%clk 0:02:00]} 21. Rd1 {[%clk 0:02:07]}  Rb8+ {[%clk 0:01:59]} 22. Ka1 {[%clk 0:02:01]}  Qb6 {[%clk 0:01:53]} 23. Bb3 {[%clk 0:01:59]}  Be6 {[%clk 0:01:53]} 24. c4 {[%clk 0:01:44]}  Qc7 {[%clk 0:01:49]} 25. c3 {[%clk 0:01:41]}  Qxh2 {[%clk 0:01:49]} 26. Rd2 {[%clk 0:01:30]}  Qf4 {[%clk 0:01:44]} 27. Qd3 {[%clk 0:01:24]}  h5 {[%clk 0:01:41]} 28. Rd1 {[%clk 0:01:23]}  h4 {[%clk 0:01:40]} 29. Re1 {[%clk 0:01:22]}  Qf6 {[%clk 0:01:32]} 30. Qe3 {[%clk 0:01:19]}  Kg7 {[%clk 0:01:21]} 31. Kb2 {[%clk 0:01:17]}  Rd8 {[%clk 0:01:18]} 32. Re2 {[%clk 0:01:14]}  Qf5 {[%clk 0:01:04]} 33. Bc2 {[%clk 0:01:14]}  Qh5 {[%clk 0:01:04]} 34. Qf4 {[%clk 0:01:10]}  Rd6 {[%clk 0:00:48]} 35. Re5 {[%clk 0:01:09]}  Qh6 {[%clk 0:00:48]} 36. Qxh6+ {[%clk 0:00:59]}  Kxh6 {[%clk 0:00:49]} 37. Kc1 {[%clk 0:01:00]}  Bxc4 {[%clk 0:00:37]} 38. Rxe7 {[%clk 0:00:59]}  Bf1 {[%clk 0:00:31]} 39. Rxf7 {[%clk 0:00:50]}  Bxg2 {[%clk 0:00:31]} 40. Rf4 {[%clk 0:00:50]}  h3 {[%clk 0:00:19]} 41. Rh4+ {[%clk 0:00:49]}  Kg7 {[%clk 0:00:19]} 42. f4 {[%clk 0:00:47]}  Rd5 {[%clk 0:00:17]} 43. Bd1 {[%clk 0:00:42]}  Rd3 {[%clk 0:00:16]} 44. Kc2 {[%clk 0:00:41]}  Rg3 {[%clk 0:00:17]} 45. Kd2 {[%clk 0:00:41]}  Be4 {[%clk 0:00:15]} 46. Bg4 {[%clk 0:00:40]}  Bf5 {[%clk 0:00:10]} 47. Bxf5 {[%clk 0:00:39]}  gxf5 {[%clk 0:00:11]} 48. Kc2 {[%clk 0:00:39]}  Kf6 {[%clk 0:00:11]} 49. Kb3 {[%clk 0:00:39]}  Ke6 {[%clk 0:00:08]} 50. Kc4 {[%clk 0:00:39]}  Kd6 {[%clk 0:00:09]} 51. Rh6+ {[%clk 0:00:38]}  Kc7 {[%clk 0:00:09]} 52. a4 {[%clk 0:00:38]}  Kb7 {[%clk 0:00:07]} 53. a5 {[%clk 0:00:36]}  Rf3 {[%clk 0:00:06]} 54. a6+ {[%clk 0:00:31]}  Kc7 {[%clk 0:00:05]} 55. Kxc5 {[%clk 0:00:30]}  Rxc3+ {[%clk 0:00:05]} 56. Kd5 {[%clk 0:00:31]}  Ra3 {[%clk 0:00:04]} 57. Ke5 {[%clk 0:00:24]}  Ra5+ {[%clk 0:00:04]} 58. Kd4 {[%clk 0:00:24]}  Ra4+ {[%clk 0:00:05]} 59. Kc5 {[%clk 0:00:22]}  Ra5+ {[%clk 0:00:04]} 60. Kb4 {[%clk 0:00:21]}  Ra1 {[%clk 0:00:04]} 61. Rxh3 {[%clk 0:00:18]}  Rxa6 {[%clk 0:00:04]} 62. Rh7+ {[%clk 0:00:17]}  Kb8 {[%clk 0:00:04]} 63. Rf7 {[%clk 0:00:17]}  Rb6+ {[%clk 0:00:04]} 64. Kc5 {[%clk 0:00:17]}  Rb1 {[%clk 0:00:05]} 65. Rxf5 {[%clk 0:00:17]}  Kb7 {[%clk 0:00:05]} 66. Rf7+ {[%clk 0:00:16]}  Ka6 {[%clk 0:00:06]} 67. f5 {[%clk 0:00:17]}  Rc1+ {[%clk 0:00:06]} 68. Kd5 {[%clk 0:00:17]}  Rd1+ {[%clk 0:00:07]} 69. Ke5 {[%clk 0:00:17]}  Re1+ {[%clk 0:00:07]} 70. Kd6 {[%clk 0:00:17]}  Rf1 {[%clk 0:00:04]} 71. f6 {[%clk 0:00:17]}  Kb5 {[%clk 0:00:04]} 72. Ke6 {[%clk 0:00:15]}  a5 {[%clk 0:00:04]} 73. Rb7+ {[%clk 0:00:14]}  Kc4 {[%clk 0:00:04]} 74. f7 {[%clk 0:00:13]}  a4 {[%clk 0:00:05]} 75. Ra7 {[%clk 0:00:12]}  Kb3 {[%clk 0:00:04]} 76. Rb7+ {[%clk 0:00:11]}  Kc3 {[%clk 0:00:05]} 77. Rc7+ {[%clk 0:00:11]}  Kb3 {[%clk 0:00:05]} 78. Rc5 {[%clk 0:00:11]}  Rxf7 {[%clk 0:00:04]} 79. Kxf7 {[%clk 0:00:11]}  a3 {[%clk 0:00:05]} 80. Rb5+ {[%clk 0:00:11]}  Kc3 {[%clk 0:00:06]} 81. Ra5 {[%clk 0:00:11]}  Kb2 {[%clk 0:00:06]} 82. Ke6 {[%clk 0:00:11]}  a2 {[%clk 0:00:06]} 83. Rxa2+ {[%clk 0:00:12]}  Kxa2 {[%clk 0:00:06]} 1/2-1/2


[Site "https://www.chess.com"]

[Event "Titled Tuesday Blitz October 19 2021"]
[White "Abarca Gonzalez, Nicolas"]
[Black "Taboas Rodriguez, Daniel"]
[WhiteFideId "3409422"]
[BlackFideId "2208466"]
[WhiteElo "2504"]
[BlackElo "2429"]
[Result "1-0"]
[Round "03"]
[TimeControl "180+1"]
[Date "2021.10.19"]
[WhiteClock "0:01:53"]
[BlackClock "0:00:55"]

1. e4 {[%clk 0:03:00]}  e6 {[%clk 0:02:59]} 2. d4 {[%clk 0:03:00]}  d5 {[%clk 0:03:00]} 3. exd5 {[%clk 0:03:01]}  exd5 {[%clk 0:03:00]} 4. c4 {[%clk 0:02:59]}  Nf6 {[%clk 0:03:00]} 5. Nc3 {[%clk 0:02:59]}  Be7 {[%clk 0:03:01]} 6. Nf3 {[%clk 0:03:00]}  O-O {[%clk 0:03:00]} 7. cxd5 {[%clk 0:02:52]}  Nxd5 {[%clk 0:03:01]} 8. Bd3 {[%clk 0:02:53]}  Bg4 {[%clk 0:02:46]} 9. O-O {[%clk 0:02:51]}  Nc6 {[%clk 0:02:45]} 10. Be4 {[%clk 0:02:46]}  Nf6 {[%clk 0:02:42]} 11. Bxc6 {[%clk 0:02:44]}  bxc6 {[%clk 0:02:43]} 12. Be3 {[%clk 0:02:43]}  Nd5 {[%clk 0:02:42]} 13. h3 {[%clk 0:02:43]}  Bh5 {[%clk 0:02:42]} 14. Ne4 {[%clk 0:02:42]}  f5 {[%clk 0:02:31]} 15. Nc5 {[%clk 0:02:34]}  f4 {[%clk 0:02:25]} 16. Bd2 {[%clk 0:02:31]}  Rf6 {[%clk 0:02:14]} 17. Re1 {[%clk 0:02:26]}  Rg6 {[%clk 0:02:06]} 18. Kh1 {[%clk 0:02:07]}  Qd6 {[%clk 0:01:41]} 19. Re5 {[%clk 0:01:56]}  Bxf3 {[%clk 0:01:33]} 20. Qxf3 {[%clk 0:01:57]}  Rf8 {[%clk 0:01:31]} 21. Rae1 {[%clk 0:01:56]}  Bf6 {[%clk 0:01:08]} 22. Re6 {[%clk 0:01:55]}  Qd8 {[%clk 0:01:07]} 23. Rxc6 {[%clk 0:01:54]}  Bxd4 {[%clk 0:01:07]} 24. Rxg6 {[%clk 0:01:53]}  hxg6 {[%clk 0:01:07]} 25. Ne6 {[%clk 0:01:54]}  Qd6 {[%clk 0:00:55]} 26. Nxd4 {[%clk 0:01:53]} 1-0


[Site "https://www.chess.com"]

[Event "Titled Tuesday Blitz October 19 2021"]
[White "Ajay, Karthikeyan"]
[Black "Obolenskikh, Dmitry"]
[WhiteFideId "35011685"]
[BlackFideId "4156013"]
[WhiteElo "2183"]
[BlackElo "2541"]
[Result "1-0"]
[Round "03"]
[TimeControl "180+1"]
[Date "2021.10.19"]
[WhiteClock "0:02:02"]
[BlackClock "0:01:37"]

1. d4 {[%clk 0:03:00]}  d5 {[%clk 0:02:59]} 2. Bf4 {[%clk 0:03:01]}  Nf6 {[%clk 0:02:59]} 3. e3 {[%clk 0:03:01]}  c5 {[%clk 0:02:59]} 4. Nf3 {[%clk 0:03:01]}  Nc6 {[%clk 0:02:57]} 5. Nbd2 {[%clk 0:03:02]}  Qb6 {[%clk 0:02:26]} 6. dxc5 {[%clk 0:02:58]}  Qxb2 {[%clk 0:02:25]} 7. Rb1 {[%clk 0:02:57]}  Qc3 {[%clk 0:02:24]} 8. Bb5 {[%clk 0:02:58]}  Qxc5 {[%clk 0:02:18]} 9. c4 {[%clk 0:02:56]}  a6 {[%clk 0:02:06]} 10. Bxc6+ {[%clk 0:02:46]}  bxc6 {[%clk 0:02:06]} 11. O-O {[%clk 0:02:44]}  Bf5 {[%clk 0:02:03]} 12. Rc1 {[%clk 0:02:41]}  e6 {[%clk 0:02:01]} 13. Nd4 {[%clk 0:02:29]}  Bd3 {[%clk 0:02:00]} 14. N2b3 {[%clk 0:02:22]}  Qb6 {[%clk 0:01:51]} 15. Qxd3 {[%clk 0:02:19]}  Be7 {[%clk 0:01:50]} 16. c5 {[%clk 0:02:16]}  Qb7 {[%clk 0:01:43]} 17. Na5 {[%clk 0:02:15]}  Qc8 {[%clk 0:01:39]} 18. Naxc6 {[%clk 0:02:14]}  Nd7 {[%clk 0:01:39]} 19. Nxe7 {[%clk 0:02:11]}  Kxe7 {[%clk 0:01:39]} 20. c6 {[%clk 0:02:12]}  Nf6 {[%clk 0:01:39]} 21. Qa3+ {[%clk 0:02:11]}  Ke8 {[%clk 0:01:39]} 22. c7 {[%clk 0:02:07]}  Nd7 {[%clk 0:01:37]} 23. Nc6 {[%clk 0:02:02]} 1-0


[Site "https://www.chess.com"]

[Event "Titled Tuesday Blitz October 19 2021"]
[White "Arabidze, Meri"]
[Black "Jobava, Baadur"]
[WhiteFideId "13604040"]
[BlackFideId "13601520"]
[WhiteElo "2432"]
[BlackElo "2731"]
[Result "0-1"]
[Round "03"]
[TimeControl "180+1"]
[Date "2021.10.19"]
[WhiteClock "0:00:01"]
[BlackClock "0:01:41"]

1. Nf3 {[%clk 0:03:00]}  d5 {[%clk 0:02:57]} 2. d4 {[%clk 0:02:59]}  c6 {[%clk 0:02:58]} 3. g3 {[%clk 0:02:57]}  Nf6 {[%clk 0:02:59]} 4. Bg2 {[%clk 0:02:57]}  Bf5 {[%clk 0:02:59]} 5. O-O {[%clk 0:02:57]}  e6 {[%clk 0:03:00]} 6. b3 {[%clk 0:02:55]}  h6 {[%clk 0:03:00]} 7. Bb2 {[%clk 0:02:55]}  Nbd7 {[%clk 0:03:00]} 8. c4 {[%clk 0:02:55]}  Be7 {[%clk 0:03:01]} 9. Nc3 {[%clk 0:02:55]}  O-O {[%clk 0:03:01]} 10. e3 {[%clk 0:02:54]}  Re8 {[%clk 0:03:01]} 11. Qe2 {[%clk 0:02:50]}  Ne4 {[%clk 0:03:01]} 12. Rac1 {[%clk 0:02:47]}  Bf8 {[%clk 0:03:00]} 13. Rfd1 {[%clk 0:02:46]}  Ndf6 {[%clk 0:02:59]} 14. Ne5 {[%clk 0:02:44]}  Nxc3 {[%clk 0:02:59]} 15. Bxc3 {[%clk 0:02:45]}  a5 {[%clk 0:02:58]} 16. c5 {[%clk 0:02:35]}  Nd7 {[%clk 0:02:56]} 17. f4 {[%clk 0:02:09]}  Nf6 {[%clk 0:02:55]} 18. a3 {[%clk 0:02:01]}  Be4 {[%clk 0:02:54]} 19. Bh3 {[%clk 0:01:54]}  Bh7 {[%clk 0:02:54]} 20. Rf1 {[%clk 0:01:41]}  Ne4 {[%clk 0:02:54]} 21. Be1 {[%clk 0:01:35]}  f6 {[%clk 0:02:53]} 22. Nd3 {[%clk 0:01:32]}  g5 {[%clk 0:02:48]} 23. Bg4 {[%clk 0:01:26]}  Bg7 {[%clk 0:02:47]} 24. Bh5 {[%clk 0:01:25]}  Rf8 {[%clk 0:02:48]} 25. Bg4 {[%clk 0:01:15]}  Qe7 {[%clk 0:02:47]} 26. Nb2 {[%clk 0:00:56]}  gxf4 {[%clk 0:02:42]} 27. gxf4 {[%clk 0:00:53]}  Kh8 {[%clk 0:02:41]} 28. Kh1 {[%clk 0:00:49]}  Rg8 {[%clk 0:02:41]} 29. Bf3 {[%clk 0:00:46]}  e5 {[%clk 0:02:25]} 30. Bh4 {[%clk 0:00:34]}  exd4 {[%clk 0:02:24]} 31. exd4 {[%clk 0:00:34]}  Rae8 {[%clk 0:02:25]} 32. Rce1 {[%clk 0:00:29]}  Qd7 {[%clk 0:02:23]} 33. Qg2 {[%clk 0:00:25]}  f5 {[%clk 0:02:21]} 34. Nd3 {[%clk 0:00:08]}  Bxd4 {[%clk 0:02:20]} 35. Qc2 {[%clk 0:00:07]}  Rg7 {[%clk 0:01:53]} 36. Ne5 {[%clk 0:00:07]}  Qc7 {[%clk 0:01:52]} 37. Qd3 {[%clk 0:00:05]}  Bxc5 {[%clk 0:01:52]} 38. b4 {[%clk 0:00:01]}  axb4 {[%clk 0:01:52]} 39. axb4 {[%clk 0:00:02]}  Bxb4 {[%clk 0:01:53]} 40. Qd4 {[%clk 0:00:03]}  Bxe1 {[%clk 0:01:51]} 41. Rxe1 {[%clk 0:00:02]}  Kg8 {[%clk 0:01:51]} 42. Rf1 {[%clk 0:00:01]}  Qd6 {[%clk 0:01:49]} 43. Bh5 {[%clk 0:00:02]}  Ra8 {[%clk 0:01:47]} 44. Qb2 {[%clk 0:00:02]}  d4 {[%clk 0:01:44]} 45. Qb3+ {[%clk 0:00:01]}  Qd5 {[%clk 0:01:45]} 46. Qf3 {[%clk 0:00:01]}  Ra3 {[%clk 0:01:41]} 0-1


[Site "https://www.chess.com"]

[Event "Titled Tuesday Blitz October 19 2021"]
[White "Bordi, Kevin"]
[Black "Przybylski, Wojciech"]
[WhiteFideId "621862"]
[BlackFideId "1117599"]
[WhiteElo "2761"]
[BlackElo "2247"]
[Result "0-1"]
[Round "03"]
[TimeControl "180+1"]
[Date "2021.10.19"]
[WhiteClock "0:00:17"]
[BlackClock "0:00:10"]

1. d4 {[%clk 0:03:00]}  Nf6 {[%clk 0:02:59]} 2. Bg5 {[%clk 0:03:01]}  e6 {[%clk 0:02:58]} 3. e4 {[%clk 0:03:00]}  h6 {[%clk 0:02:59]} 4. Bxf6 {[%clk 0:03:00]}  Qxf6 {[%clk 0:03:00]} 5. c3 {[%clk 0:03:00]}  g6 {[%clk 0:02:59]} 6. Bd3 {[%clk 0:03:01]}  Bg7 {[%clk 0:02:59]} 7. Ne2 {[%clk 0:03:01]}  d6 {[%clk 0:02:59]} 8. O-O {[%clk 0:03:02]}  O-O {[%clk 0:02:55]} 9. f4 {[%clk 0:03:02]}  Qe7 {[%clk 0:02:53]} 10. Nd2 {[%clk 0:03:02]}  c5 {[%clk 0:02:49]} 11. Nf3 {[%clk 0:03:02]}  cxd4 {[%clk 0:02:48]} 12. cxd4 {[%clk 0:03:02]}  Nc6 {[%clk 0:02:48]} 13. Rc1 {[%clk 0:02:59]}  Bd7 {[%clk 0:02:32]} 14. Qb3 {[%clk 0:02:55]}  b6 {[%clk 0:02:26]} 15. Bb5 {[%clk 0:02:48]}  Na5 {[%clk 0:02:23]} 16. Qa4 {[%clk 0:02:46]}  Bxb5 {[%clk 0:02:20]} 17. Qxb5 {[%clk 0:02:47]}  Rfc8 {[%clk 0:02:13]} 18. b4 {[%clk 0:02:42]}  Nb7 {[%clk 0:02:12]} 19. Qa6 {[%clk 0:02:39]}  Qd7 {[%clk 0:01:59]} 20. Rxc8+ {[%clk 0:02:16]}  Rxc8 {[%clk 0:01:54]} 21. Qxa7 {[%clk 0:02:06]}  Rc2 {[%clk 0:01:53]} 22. Ng3 {[%clk 0:02:02]}  Qc7 {[%clk 0:01:50]} 23. f5 {[%clk 0:01:51]}  exf5 {[%clk 0:01:41]} 24. exf5 {[%clk 0:01:52]}  Rb2 {[%clk 0:01:28]} 25. fxg6 {[%clk 0:01:43]}  fxg6 {[%clk 0:01:23]} 26. Kh1 {[%clk 0:01:30]}  Kh7 {[%clk 0:01:09]} 27. a3 {[%clk 0:01:14]}  Qc6 {[%clk 0:01:04]} 28. d5 {[%clk 0:00:51]}  Qxd5 {[%clk 0:01:02]} 29. Qxb6 {[%clk 0:00:49]}  Nc5 {[%clk 0:00:52]} 30. Qb5 {[%clk 0:00:29]}  Qd3 {[%clk 0:00:50]} 31. Qxd3 {[%clk 0:00:28]}  Nxd3 {[%clk 0:00:51]} 32. Ne4 {[%clk 0:00:22]}  d5 {[%clk 0:00:45]} 33. Nd6 {[%clk 0:00:20]}  Ra2 {[%clk 0:00:31]} 34. Nb5 {[%clk 0:00:20]}  Nf4 {[%clk 0:00:30]} 35. g3 {[%clk 0:00:18]}  Ne2 {[%clk 0:00:28]} 36. Rf2 {[%clk 0:00:13]}  d4 {[%clk 0:00:23]} 37. Kg2 {[%clk 0:00:08]}  d3 {[%clk 0:00:22]} 38. h4 {[%clk 0:00:03]}  Kg8 {[%clk 0:00:13]} 39. h5 {[%clk 0:00:01]}  gxh5 {[%clk 0:00:13]} 40. Nfd4 {[%clk 0:00:01]}  d2 {[%clk 0:00:09]} 41. Rxe2 {[%clk 0:00:01]}  d1=Q {[%clk 0:00:09]} 42. Rxa2 {[%clk 0:00:02]}  Bxd4 {[%clk 0:00:08]} 43. Nxd4 {[%clk 0:00:02]}  Qxd4 {[%clk 0:00:08]} 44. Rf2 {[%clk 0:00:03]}  Qd5+ {[%clk 0:00:08]} 45. Kh2 {[%clk 0:00:03]}  Qe5 {[%clk 0:00:07]} 46. Rf4 {[%clk 0:00:04]}  Qe3 {[%clk 0:00:06]} 47. a4 {[%clk 0:00:04]}  Qd2+ {[%clk 0:00:04]} 48. Kh3 {[%clk 0:00:04]}  Qd7+ {[%clk 0:00:04]} 49. Kh2 {[%clk 0:00:04]}  Qxa4 {[%clk 0:00:05]} 50. Kg2 {[%clk 0:00:05]}  Qc6+ {[%clk 0:00:05]} 51. Kh2 {[%clk 0:00:05]}  Qe6 {[%clk 0:00:05]} 52. Rh4 {[%clk 0:00:06]}  Qg6 {[%clk 0:00:05]} 53. Rf4 {[%clk 0:00:07]}  Kh7 {[%clk 0:00:05]} 54. Rh4 {[%clk 0:00:07]}  Qf7 {[%clk 0:00:05]} 55. Rf4 {[%clk 0:00:08]}  Qe8 {[%clk 0:00:06]} 56. Rh4 {[%clk 0:00:09]}  Qe2+ {[%clk 0:00:06]} 57. Kg1 {[%clk 0:00:09]}  Qe8 {[%clk 0:00:06]} 58. Kg2 {[%clk 0:00:10]}  Qf7 {[%clk 0:00:06]} 59. Rf4 {[%clk 0:00:11]}  Qd5+ {[%clk 0:00:06]} 60. Kh2 {[%clk 0:00:11]}  Kg6 {[%clk 0:00:07]} 61. Rh4 {[%clk 0:00:10]}  Kg5 {[%clk 0:00:07]} 62. Rf4 {[%clk 0:00:10]}  Qd6 {[%clk 0:00:07]} 63. Kg2 {[%clk 0:00:11]}  Qd2+ {[%clk 0:00:07]} 64. Kg1 {[%clk 0:00:11]}  Qe2 {[%clk 0:00:08]} 65. Rh4 {[%clk 0:00:11]}  Qe1+ {[%clk 0:00:08]} 66. Kg2 {[%clk 0:00:12]}  Qd2+ {[%clk 0:00:08]} 67. Kg1 {[%clk 0:00:12]}  Qd1+ {[%clk 0:00:08]} 68. Kg2 {[%clk 0:00:13]}  Qc2+ {[%clk 0:00:09]} 69. Kg1 {[%clk 0:00:13]}  Qc1+ {[%clk 0:00:09]} 70. Kg2 {[%clk 0:00:14]}  Qb2+ {[%clk 0:00:10]} 71. Kg1 {[%clk 0:00:15]}  Qa3 {[%clk 0:00:10]} 72. Kg2 {[%clk 0:00:16]}  Qb3 {[%clk 0:00:11]} 73. Rf4 {[%clk 0:00:15]}  Qc2+ {[%clk 0:00:11]} 74. Kg1 {[%clk 0:00:16]}  Qc6 {[%clk 0:00:10]} 75. Kh2 {[%clk 0:00:16]}  Qd5 {[%clk 0:00:10]} 76. Rh4 {[%clk 0:00:16]}  Qd2+ {[%clk 0:00:09]} 77. Kg1 {[%clk 0:00:16]}  Qe1+ {[%clk 0:00:09]} 78. Kg2 {[%clk 0:00:17]}  Qe2+ {[%clk 0:00:09]} 79. Kg1 {[%clk 0:00:18]}  Qf3 {[%clk 0:00:09]} 80. Kh2 {[%clk 0:00:18]}  Qf2+ {[%clk 0:00:10]} 81. Kh3 {[%clk 0:00:17]}  Qg1 {[%clk 0:00:10]} 0-1


[Site "https://www.chess.com"]

[Event "Titled Tuesday Blitz October 19 2021"]
[White "Demchenko, Anton"]
[Black "Borsuk, Konstantin"]
[WhiteFideId "4160258"]
[BlackFideId "14113406"]
[WhiteElo "2583"]
[BlackElo "2397"]
[Result "1-0"]
[Round "03"]
[TimeControl "180+1"]
[Date "2021.10.19"]
[WhiteClock "0:01:33"]
[BlackClock "0:00:02"]

1. e4 {[%clk 0:03:00]}  e6 {[%clk 0:02:58]} 2. d4 {[%clk 0:03:00]}  d5 {[%clk 0:02:59]} 3. Nc3 {[%clk 0:03:01]}  Bb4 {[%clk 0:02:59]} 4. exd5 {[%clk 0:03:01]}  exd5 {[%clk 0:02:58]} 5. Bd3 {[%clk 0:03:01]}  c6 {[%clk 0:02:52]} 6. Nf3 {[%clk 0:02:58]}  Bg4 {[%clk 0:02:51]} 7. O-O {[%clk 0:02:58]}  Ne7 {[%clk 0:02:49]} 8. Re1 {[%clk 0:02:50]}  Nd7 {[%clk 0:02:46]} 9. Bd2 {[%clk 0:02:45]}  Bd6 {[%clk 0:02:45]} 10. h3 {[%clk 0:02:36]}  Bh5 {[%clk 0:02:44]} 11. g4 {[%clk 0:02:33]}  Bg6 {[%clk 0:02:44]} 12. Bxg6 {[%clk 0:02:34]}  hxg6 {[%clk 0:02:39]} 13. Kg2 {[%clk 0:02:34]}  Qc7 {[%clk 0:02:29]} 14. Ng5 {[%clk 0:02:30]}  Nb6 {[%clk 0:01:54]} 15. Qf3 {[%clk 0:02:25]}  Rf8 {[%clk 0:01:54]} 16. b3 {[%clk 0:02:20]}  O-O-O {[%clk 0:01:53]} 17. a4 {[%clk 0:02:21]}  a6 {[%clk 0:01:46]} 18. a5 {[%clk 0:02:17]}  Nd7 {[%clk 0:01:45]} 19. Na4 {[%clk 0:02:17]}  Nf6 {[%clk 0:01:38]} 20. c4 {[%clk 0:02:16]}  Ne4 {[%clk 0:01:24]} 21. Nxe4 {[%clk 0:02:12]}  dxe4 {[%clk 0:01:23]} 22. Qxe4 {[%clk 0:02:13]}  f5 {[%clk 0:00:31]} 23. Qe6+ {[%clk 0:02:13]}  Kb8 {[%clk 0:00:30]} 24. c5 {[%clk 0:02:13]}  Bf4 {[%clk 0:00:28]} 25. Bxf4 {[%clk 0:02:08]}  Qxf4 {[%clk 0:00:28]} 26. Qxe7 {[%clk 0:02:08]}  fxg4 {[%clk 0:00:11]} 27. Qe5+ {[%clk 0:02:08]}  Ka7 {[%clk 0:00:09]} 28. Qxf4 {[%clk 0:02:07]}  Rxf4 {[%clk 0:00:09]} 29. Ra2 {[%clk 0:02:01]}  gxh3+ {[%clk 0:00:06]} 30. Kxh3 {[%clk 0:02:01]}  Rfxd4 {[%clk 0:00:05]} 31. Re3 {[%clk 0:01:58]}  Rb4 {[%clk 0:00:03]} 32. Rae2 {[%clk 0:01:57]}  Rb5 {[%clk 0:00:03]} 33. Kg4 {[%clk 0:01:49]}  Rxa5 {[%clk 0:00:03]} 34. Kg5 {[%clk 0:01:50]}  Rb5 {[%clk 0:00:03]} 35. Kxg6 {[%clk 0:01:50]}  Rd4 {[%clk 0:00:02]} 36. Kxg7 {[%clk 0:01:49]}  a5 {[%clk 0:00:02]} 37. Kf6 {[%clk 0:01:48]}  Rbb4 {[%clk 0:00:03]} 38. Ke5 {[%clk 0:01:47]}  Ka6 {[%clk 0:00:03]} 39. f3 {[%clk 0:01:44]}  Rf4 {[%clk 0:00:03]} 40. Rd3 {[%clk 0:01:40]}  Kb5 {[%clk 0:00:03]} 41. Nc3+ {[%clk 0:01:33]}  Kxc5 {[%clk 0:00:02]} 42. Ne4+ {[%clk 0:01:33]}  Kb6 {[%clk 0:00:02]} 43. Kxf4 {[%clk 0:01:33]} 1-0


[Site "https://www.chess.com"]

[Event "Titled Tuesday Blitz October 19 2021"]
[White "Erdogdu, Mert"]
[Black "Perez Rodriguez, Luis Manuel"]
[WhiteFideId "6301495"]
[BlackFideId "3503364"]
[WhiteElo "2485"]
[BlackElo "2429"]
[Result "1/2-1/2"]
[Round "03"]
[TimeControl "180+1"]
[Date "2021.10.19"]
[WhiteClock "0:00:40"]
[BlackClock "0:00:50"]

1. e4 {[%clk 0:03:00]}  e5 {[%clk 0:03:00]} 2. Nf3 {[%clk 0:03:00]}  Nc6 {[%clk 0:03:00]} 3. Bc4 {[%clk 0:03:01]}  Nf6 {[%clk 0:03:00]} 4. d3 {[%clk 0:03:01]}  Be7 {[%clk 0:02:59]} 5. O-O {[%clk 0:03:01]}  O-O {[%clk 0:03:00]} 6. Re1 {[%clk 0:03:02]}  d6 {[%clk 0:03:00]} 7. a4 {[%clk 0:03:02]}  Kh8 {[%clk 0:03:01]} 8. Nc3 {[%clk 0:03:01]}  Ng8 {[%clk 0:03:01]} 9. d4 {[%clk 0:03:02]}  Bg4 {[%clk 0:02:58]} 10. dxe5 {[%clk 0:03:02]}  Bxf3 {[%clk 0:02:54]} 11. Qxf3 {[%clk 0:03:01]}  Nxe5 {[%clk 0:02:55]} 12. Qe2 {[%clk 0:03:00]}  Nxc4 {[%clk 0:02:56]} 13. Qxc4 {[%clk 0:03:00]}  f5 {[%clk 0:02:54]} 14. exf5 {[%clk 0:02:45]}  Rxf5 {[%clk 0:02:55]} 15. Be3 {[%clk 0:02:38]}  Qd7 {[%clk 0:02:52]} 16. Rad1 {[%clk 0:02:37]}  Raf8 {[%clk 0:02:52]} 17. Qg4 {[%clk 0:02:16]}  Nf6 {[%clk 0:02:39]} 18. Qh3 {[%clk 0:02:14]}  a6 {[%clk 0:02:20]} 19. Ne2 {[%clk 0:02:10]}  Rh5 {[%clk 0:01:41]} 20. Qxd7 {[%clk 0:02:08]}  Nxd7 {[%clk 0:01:41]} 21. Nf4 {[%clk 0:02:03]}  Rhf5 {[%clk 0:01:42]} 22. Ne6 {[%clk 0:01:52]}  Rc8 {[%clk 0:01:42]} 23. Bd4 {[%clk 0:01:47]}  Bf6 {[%clk 0:01:42]} 24. g3 {[%clk 0:01:39]}  Kg8 {[%clk 0:01:39]} 25. f4 {[%clk 0:01:36]}  Ra5 {[%clk 0:01:29]} 26. b3 {[%clk 0:01:33]}  b5 {[%clk 0:01:20]} 27. axb5 {[%clk 0:01:28]}  axb5 {[%clk 0:01:21]} 28. Nxg7 {[%clk 0:01:26]}  Ra2 {[%clk 0:01:02]} 29. Nh5 {[%clk 0:01:12]}  Bxd4+ {[%clk 0:00:59]} 30. Rxd4 {[%clk 0:01:12]}  Rxc2 {[%clk 0:00:59]} 31. Re7 {[%clk 0:01:12]}  Ra8 {[%clk 0:00:59]} 32. Rd1 {[%clk 0:01:02]}  Raa2 {[%clk 0:00:59]} 33. Rxd7 {[%clk 0:00:42]}  Rg2+ {[%clk 0:00:57]} 34. Kf1 {[%clk 0:00:38]}  Raf2+ {[%clk 0:00:47]} 35. Ke1 {[%clk 0:00:38]}  Re2+ {[%clk 0:00:47]} 36. Kf1 {[%clk 0:00:39]}  Ref2+ {[%clk 0:00:48]} 37. Ke1 {[%clk 0:00:39]}  Re2+ {[%clk 0:00:49]} 38. Kf1 {[%clk 0:00:40]}  Ref2+ {[%clk 0:00:50]} 1/2-1/2


[Site "https://www.chess.com"]